Cogmind - Beta 11.1 @@@ ROGUE MODE // 2022.07.12 @ 17:13:12 Player: deepledi Result: Self-destructed Performance ------------- Evolutions (3) 1500 Regions Visited (7) 1400 Robots Destroyed (27) 135 Value Destroyed (429) 429 Prototype IDs (5) 100 Alien Tech Used (0) 0 Bonus (390) 390 TOTAL SCORE: 3954 Bonus ------- Follower Combat Kills 90 Aligned with FarCom 300 Cogmind --------- Core Integrity 700/700 Matter 4/300 Energy 240/240 System Corruption 0% Temperature Cool (0) Movement Treading (145) Location -7/Factory Parts ------- > --- POWER (1) -------- Nuclear Core > --- PROPULSION (4) --- Advanced Treads Advanced Treads > --- UTILITY (6) ------ Large Storage Unit Visual Processing Unit Improved Targeting Computer Medium Armor Plating > --- WEAPON (2) ------- Autogun > --- INVENTORY (15) --- Improved Ion Engine Armored Huge Wheel Armored Huge Wheel Heat Sink Signal Interpreter Hardlight Generator Hacking Suite Latent Energy Streamer Minigun Gauss Rifle Gauss Rifle Plasma Cutter Hammer Peak State ------------ > --- POWER ------------ Nuclear Core > --- PROPULSION ------- Armored Wheel Armored Huge Wheel > --- UTILITY ---------- Large Storage Unit Visual Processing Unit Improved Targeting Computer Medium Armor Plating Medium Armor Plating > --- WEAPON ----------- Autogun Autogun > --- INVENTORY -------- Improved Ion Engine Armored Huge Wheel Heat Sink Signal Interpreter Improved Targeting Computer Hardlight Generator Medium Laser Latent Energy Streamer Autogun Autogun Plasma Cutter Hammer [Rating: 29] Favorites ----------- Power Light Ion Engine Engine Light Ion Engine Power Core Nuclear Core Propulsion Wheel Treads Advanced Treads Wheel Wheel Flight Unit Improved VTOL Module Utility Medium Armor Plating Device Trap Reconfigurator Storage Large Storage Unit Processor Improved Targeting Computer Protection Medium Armor Plating Weapon Autogun Energy Gun Medium Laser Energy Cannon Latent Energy Streamer Ballistic Gun Autogun Build | -11 -10 -9 -9 -9 -8 -8 -7 ------- Run | Scr Mat Mat Min Exi Min Mat Fac Slots Evolved 6 | . . 2 . . . 2 2 Power . | . . . . . . . . Propulsion 2 | . . . . . . 1 1 Utility 4 | . . 2 . . . 1 1 Weapon . | . . . . . . . . Parts Attached 37 | 7 8 5 . 5 . 12 . Power 4 | 1 1 1 . . . 1 . Engine 3 | 1 1 1 . . . . . Core 1 | . . . . . . 1 . Reactor . | . . . . . . . . Propulsion 12 | 3 1 . . . . 8 . Treads 3 | . . . . . . 3 . Leg . | . . . . . . . . Wheel 8 | 3 1 . . . . 4 . Hover . | . . . . . . . . Flight 1 | . . . . . . 1 . Utility 12 | 1 4 2 . 2 . 3 . Device 2 | . . . . 2 . . . Storage 3 | 1 2 . . . . . . Processor 3 | . 1 1 . . . 1 . Hackware . | . . . . . . . . Protection 4 | . 1 1 . . . 2 . Artifact . | . . . . . . . . Weapon 9 | 2 2 2 . 3 . . . Energy Gun 1 | 1 . . . . . . . Energy Cannon 3 | . . 1 . 2 . . . Ballistic Gun 5 | 1 2 1 . 1 . . . Ballistic Cannon . | . . . . . . . . Launcher . | . . . . . . . . Special Weapon . | . . . . . . . . Impact Weapon . | . . . . . . . . Slashing Weapon . | . . . . . . . . Piercing Weapon . | . . . . . . . . Special Melee Weapon . | . . . . . . . . Unidentified Prototypes 5 | . . 1 . 3 . 1 . Parts Lost 2 | . 1 . . . . 1 . Power 1 | . 1 . . . . . . Propulsion . | . . . . . . . . Utility 1 | . . . . . . 1 . Weapon . | . . . . . . . . Highest Loss Streak 1 | . 1 . . . . 1 . To Critical Strikes . | . . . . . . . . Average Slot Usage (%) 91 | . 94 99 100 91 88 87 78 Engine 8 | . 13 11 11 11 11 . . Core 2 | . . . . . . 8 7 Treads 1 | . . . . . . 3 22 Wheel 22 | . 28 22 22 22 22 22 . Storage 11 | . 14 11 11 11 11 9 7 Processor 10 | . 7 10 11 11 11 12 15 Protection 11 | . . 22 22 14 11 12 14 Energy Gun 3 | . 12 . . . . . . Ballistic Gun 18 | . 15 21 22 20 22 18 11 Naked Turns . | . . . . . . . . Heaviest Build 47 | 12 36 47 47 47 40 47 47 Greatest Support 66 | 20 20 20 20 20 20 66 66 Greatest Overweight (x) 3 | 1 1 2 2 2 1 3 . Average Overweight (x) . | . . 2 2 1 1 . . Largest Inventory Capacity 15 | 8 15 15 15 15 15 15 15 Average Capacity 13 | 7 11 15 15 15 15 15 15 Most Carried 15 | 7 15 15 15 15 14 15 15 Average Carried 12 | 4 9 14 15 14 14 14 14 Final Capacity 15 | 8 15 15 15 15 15 15 15 Final Carried 15 | 7 15 15 15 14 14 15 15 Class Distribution -------------------- 100% | Mutant Dominant Class ---------------- Mutant | -10/Materials Mutant | -9/Materials Mutant | -9/Mines Mutant | -9/Exiles Mutant | -8/Mines Mutant | -8/Materials Mutant | -7/Factory Resources | -11 -10 -9 -9 -9 -8 -8 -7 ----------- Run | Scr Mat Mat Min Exi Min Mat Fac Matter Collected 762 | 327 141 131 . . . 163 . Remotely . | . . . . . . . . Salvage Created 971 | 186 310 284 . . . 191 . Parts 58 | 12 19 18 . . . 9 . Haulers Intercepted 6 | . 2 2 . . . 2 . Recyclers Shooed 5 | 2 1 2 . . . . . Parts Field Recycled . | . . . . . . . . Retrieved Matter . | . . . . . . . . Parts Self-Destructed . | . . . . . . . . Prevented . | . . . . . . . . Kills | -11 -10 -9 -9 -9 -8 -8 -7 ------- Run | Scr Mat Mat Min Exi Min Mat Fac Combat Hostiles Destroyed 12 | . 7 3 . . . 2 . Guns 12 | . 7 3 . . . 2 . Classes Destroyed 7 | 2 3 2 . . . . . Tunneler 5 | 5 . . . . . . . Hauler 6 | . 2 2 . . . 2 . Recycler 2 | 1 1 . . . . . . Watcher 2 | . . 2 . . . . . Swarmer 5 | . 5 . . . . . . Grunt 6 | . 2 2 . . . 2 . Sentry 1 | . . 1 . . . . . Best Kill Streak 4 | 3 4 3 . . . 1 . Combat Bots Only 3 | . 3 3 . . . 1 . Max Kills in Single Turn 1 | 1 1 1 . . . 1 . Gunslinging . | . . . . . . . . Exploded . | . . . . . . . . Melee . | . . . . . . . . Uniques/NPCs Destroyed . | . . . . . . . . Combat | -11 -10 -9 -9 -9 -8 -8 -7 -------- Run | Scr Mat Mat Min Exi Min Mat Fac Damage Taken 608 | . 261 96 . . . 251 . Core 31 | . . . . . . 31 . Absorbed by Shields . | . . . . . . . . Core Remaining (%) 98 | 100 100 . . . 100 94 . Volleys Fired 98 | 19 39 15 . . . 25 . Largest 2 | 2 2 2 . . . 2 . Hottest 70 | 70 70 46 . . . 46 . Shots Fired 196 | 38 78 30 . . . 50 . Gun 196 | 38 78 30 . . . 50 . Cannon . | . . . . . . . . Launcher . | . . . . . . . . Special . | . . . . . . . . Kinetic 140 | 19 41 30 . . . 50 . Thermal 56 | 19 37 . . . . . . Explosive . | . . . . . . . . Electromagnetic . | . . . . . . . . Robot Hit Streak 7 | 6 5 7 . . . 6 . Robot Miss Streak 3 | 2 3 3 . . . 3 . Penetration Max . | . . . . . . . . Secondary Targets . | . . . . . . . . Shots Hit Robots 122 | 24 45 19 . . . 34 . Core Hits 40 | 7 14 10 . . . 9 . Critical Kills 1 | . 1 . . . . . . Critical Parts Destroyed . | . . . . . . . . Critical Strikes 3 | 1 2 . . . . . . Burn 2 | 1 1 . . . . . . Destroy 1 | . 1 . . . . . . Melee Attacks . | . . . . . . . . Impact . | . . . . . . . . Slashing . | . . . . . . . . Piercing . | . . . . . . . . Sneak Attacks . | . . . . . . . . Combat Hostiles . | . . . . . . . . Follow-up Attacks . | . . . . . . . . Damage Inflicted 1716 | 316 562 307 . . . 531 . Guns 1713 | 316 560 307 . . . 530 . Cannons . | . . . . . . . . Explosions . | . . . . . . . . Melee . | . . . . . . . . Ramming 3 | . 2 . . . . 1 . Kinetic 1285 | 152 296 307 . . . 530 . Thermal 428 | 164 264 . . . . . . Explosive . | . . . . . . . . Electromagnetic . | . . . . . . . . Impact . | . . . . . . . . Slashing . | . . . . . . . . Piercing . | . . . . . . . . Highest Corruption 2 | . 2 . . . . . . Average Corruption 2 | . 2 . . . . . . Corruption Purged . | . . . . . . . . Corruption Blocked . | . . . . . . . . Overload Shots . | . . . . . . . . Overflow Damage . | . . . . . . . . Projectiles . | . . . . . . . . Explosions . | . . . . . . . . Melee . | . . . . . . . . Knockbacks . | . . . . . . . . Impact . | . . . . . . . . Kinetic . | . . . . . . . . Secondary . | . . . . . . . . Self-Inflicted Damage 1 | . 1 . . . . . . Shots . | . . . . . . . . Rammed 2 | . 1 . . . . 1 . Targets Rammed 2 | . 1 . . . . 1 . Kicked . | . . . . . . . . Crushed . | . . . . . . . . Highest Temperature 63 | 52 63 42 . . . 13 . Average Temperature 16 | 20 20 14 . . . 5 . Received Heat Transfer 123 | . 24 36 . . . 63 . Siege Activations . | . . . . . . . . Robots Corrupted . | . . . . . . . . Combat Hostiles . | . . . . . . . . Parts Fried . | . . . . . . . . Impact Corruptions . | . . . . . . . . Robots Melted 1 | . 1 . . . . . . Combat Hostiles . | . . . . . . . . Parts Melted 1 | . 1 . . . . . . Heat Transferred 1406 | 555 851 . . . . . . Parts Sabotaged . | . . . . . . . . Parts Stolen . | . . . . . . . . Parts Stripped . | . . . . . . . . Power Chain Reactions . | . . . . . . . . Missiles Intercepted . | . . . . . . . . Alert | -11 -10 -9 -9 -9 -8 -8 -7 ------- Run | Scr Mat Mat Min Exi Min Mat Fac Peak Influence 211 | 30 202 211 82 . . 132 . Initial 82 | . 19 51 82 . . . . Average 65 | 14 122 105 82 . . 33 . Maximum Alert Level 1 | . 1 1 . . . . . Low Security (%) 89 | 100 72 86 100 . 100 100 100 Level 1 10 | . 27 13 . . . . . Level 2 . | . . . . . . . . Level 3 . | . . . . . . . . Level 4 . | . . . . . . . . Level 5 . | . . . . . . . . High Security . | . . . . . . . . Max Security . | . . . . . . . . Squads Dispatched . | . . . . . . . . Investigation . | . . . . . . . . Extermination . | . . . . . . . . Reinforcement . | . . . . . . . . Assault . | . . . . . . . . Garrison . | . . . . . . . . Intercept . | . . . . . . . . Searches Triggered . | . . . . . . . . Construction Impeded . | . . . . . . . . Haulers Reinforced . | . . . . . . . . Active Scanning Responses . | . . . . . . . . Cargo Convoy Interrupts . | . . . . . . . . Stealth | -11 -10 -9 -9 -9 -8 -8 -7 --------- Run | Scr Mat Mat Min Exi Min Mat Fac Distress Signals 1 | . 1 . . . . . . Communications Jammed . | . . . . . . . . Distress Signals . | . . . . . . . . Times Spotted 34 | . 21 5 . . . 8 . Peak Tracking Total 8 | . 8 2 . . . 2 . Tactical Retreats 3 | . 3 . . . . . . Traps | -11 -10 -9 -9 -9 -8 -8 -7 ------- Run | Scr Mat Mat Min Exi Min Mat Fac Traps Triggered 2 | . . . . . . 1 1 Indirectly . | . . . . . . . . Trap Hack Attempts . | . . . . . . . . Triggered . | . . . . . . . . Disarmed . | . . . . . . . . Reprogrammed . | . . . . . . . . Reused . | . . . . . . . . Traps Extracted . | . . . . . . . . Installed . | . . . . . . . . Triggered . | . . . . . . . . Machines | -11 -10 -9 -9 -9 -8 -8 -7 ---------- Run | Scr Mat Mat Min Exi Min Mat Fac Machines Disabled . | . . . . . . . . Max in Single Turn . | . . . . . . . . Machines Sabotaged . | . . . . . . . . Garrisons Compromised . | . . . . . . . . Overloaded Fab Kills . | . . . . . . . . Hacking | -11 -10 -9 -9 -9 -8 -8 -7 --------- Run | Scr Mat Mat Min Exi Min Mat Fac Machines Accessed 7 | . 2 2 . 2 . 1 . Terminals 5 | . 2 2 . . . 1 . Fabricators . | . . . . . . . . Repair Stations . | . . . . . . . . Recycling Units . | . . . . . . . . Scanalyzers . | . . . . . . . . Garrison Access . | . . . . . . . . Total Hacks 26 | . 3 3 . 17 . 3 . Successful 22 | . 2 2 . 17 . 1 . Failed 4 | . 1 1 . . . 2 . Catastrophic . | . . . . . . . . Database Lockouts . | . . . . . . . . Manual 10 | . 3 3 . 1 . 3 . Terminals 9 | . 3 3 . . . 3 . Fabricators . | . . . . . . . . Repair Stations . | . . . . . . . . Recycling Units . | . . . . . . . . Scanalyzers . | . . . . . . . . Garrison Access . | . . . . . . . . Terminal Hacks 17 | . . . . 17 . . . Record 17 | . . . . 17 . . . Fabricator Hacks . | . . . . . . . . Repair Station Hacks . | . . . . . . . . Recycling Unit Hacks . | . . . . . . . . Scanalyzer . | . . . . . . . . Garrison Access Hacks . | . . . . . . . . Unauthorized Hacks 5 | . 2 2 . . . 1 . Terminals 5 | . 2 2 . . . 1 . Assimilate 1 | . . . . . . 1 . Botnet 4 | . 2 2 . . . . . Fabricators . | . . . . . . . . Repair Stations . | . . . . . . . . Recycling Units . | . . . . . . . . Scanalyzers . | . . . . . . . . Garrison Access . | . . . . . . . . Data Cores Recovered 1 | . . . . . . 1 . Used . | . . . . . . . . Hacking Detections 3 | . 2 . . . . 1 . Full Trace Events . | . . . . . . . . Feedback Events . | . . . . . . . . Feedback Blocked . | . . . . . . . . Robot Schematics Acquired . | . . . . . . . . Robots Built . | . . . . . . . . Authchips . | . . . . . . . . Time . | . . . . . . . . Total Robot Build Rating . | . . . . . . . . Part Schematics Acquired . | . . . . . . . . Parts Built . | . . . . . . . . Authchips . | . . . . . . . . Time . | . . . . . . . . Total Part Build Rating . | . . . . . . . . Parts Repaired . | . . . . . . . . Time . | . . . . . . . . Parts Recycled . | . . . . . . . . Recycled Matter . | . . . . . . . . Retrieved Matter . | . . . . . . . . Retrieved Components . | . . . . . . . . Parts Scanalyzed . | . . . . . . . . Part Schematics Acquired . | . . . . . . . . Parts Damaged . | . . . . . . . . Bothacking | -11 -10 -9 -9 -9 -8 -8 -7 ------------ Run | Scr Mat Mat Min Exi Min Mat Fac Used RIF Installer . | . . . . . . . . Robots Hacked . | . . . . . . . . Non-combat . | . . . . . . . . Combat . | . . . . . . . . Robot Hacks Applied . | . . . . . . . . Relay Couplers Released . | . . . . . . . . Fabnet Peak Effective % . | . . . . . . . . Robots Rewired . | . . . . . . . . Allies Hacked . | . . . . . . . . Hacks Repelled . | . . . . . . . . Allies | -11 -10 -9 -9 -9 -8 -8 -7 -------- Run | Scr Mat Mat Min Exi Min Mat Fac Total Allies 3 | . . . 3 . . . . Largest Group 3 | . . . 3 3 3 3 . Highest-Rated Group 40 | . . . 40 40 40 40 . Highest-Rated Ally 16 | . . . 16 16 16 16 . Total Orders 1 | . . . . . . 1 . ROAM 1 | . . . . . . 1 . Ally Attacks 27 | . . . . . . 27 . Total Damage 262 | . . . . . . 262 . Kills 5 | . . . . . . 5 . Allies Corrupted . | . . . . . . . . Allies Melted . | . . . . . . . . Intel | -11 -10 -9 -9 -9 -8 -8 -7 ------- Run | Scr Mat Mat Min Exi Min Mat Fac Robot Analysis Total . | . . . . . . . . Derelict Logs Recovered . | . . . . . . . . Drone Launches . | . . . . . . . . Drone Recoveries . | . . . . . . . . Exploration | -11 -10 -9 -9 -9 -8 -8 -7 ------------- Run | Scr Mat Mat Min Exi Min Mat Fac Turns Passed 2311 | 186 532 248 35 534 113 565 98 Spaces Moved 1855 | 129 451 181 27 500 102 401 64 Core 17 | 17 . . . . . . . Treads 102 | . . . . . . 38 64 Legs . | . . . . . . . . Wheels 1736 | 112 451 181 27 500 102 363 . Hover . | . . . . . . . . Flight . | . . . . . . . . Fastest Speed 50 | 50 80 110 110 95 95 95 145 Average Speed 98 | 84 83 110 110 100 95 103 145 Slowest Speed 305 | 95 95 110 110 110 95 305 145 Overloaded Moves . | . . . . . . . . Propulsion Burnouts . | . . . . . . . . Robots Hopped . | . . . . . . . . Cave-ins Triggered . | . . . . . . . . Exploration Rate (%) 30 | 4 68 21 5 89 28 24 3 Regions Visited 7 Branch Regions 3 Pre-discovered Areas . | . . . . . . . . Known Exits Taken . | . . . . . . . . Unknown Exits Taken 7 | 1 1 1 1 1 1 1 . Scrap Searched . | . . . . . . . . Spaces Dug . | . . . . . . . . Terrain Destroyed . | . . . . . . . . Melee . | . . . . . . . . Projectile . | . . . . . . . . AOE . | . . . . . . . . Terrain Rammed . | . . . . . . . . Walls Destroyed . | . . . . . . . . Machines Disabled . | . . . . . . . . Actions | -11 -10 -9 -9 -9 -8 -8 -7 --------- Run | Scr Mat Mat Min Exi Min Mat Fac Total 2167 | 168 528 207 32 532 118 511 71 Wait 102 | . 10 . 6 17 17 52 . Move 1848 | 128 450 180 26 499 101 400 64 Hop . | . . . . . . . . Pick Up 48 | 13 14 4 . 4 . 10 3 Fast Attach 5 | 1 1 . . . . 3 . Attach 21 | 6 3 3 . 3 . 6 . Detach 2 | . . . . 1 . 1 . Swap 11 | . 4 2 . 2 . 3 . Drop 30 | 1 6 3 . 6 . 10 4 Fire 98 | 19 39 15 . . . 25 . Melee . | . . . . . . . . Ram 1 | . 1 . . . . . . Kick . | . . . . . . . . Crush 1 | . . . . . . 1 . Escape Stasis . | . . . . . . . . Rewire . | . . . . . . . . Trap . | . . . . . . . . Miscellaneous . | . . . . . . . . Route ------- -11/Scrapyard -10/Materials (discovered 2 exits: *Mat x2) -9/Materials (discovered 2 exits: [*Min] / [*Sto]) -9/Mines -9/Exiles -8/Mines -8/Materials -7/Factory History --------- Turn | Location | Event 5 | -11/Scrapyard | Discovered new exit (range 15) 187 | -11/Scrapyard | Entered Materials 314 | -10/Materials | Build established: Mutant 461 | -10/Materials | Discovered new exit (range 10) 606 | -10/Materials | Discovered new exit (range 16) 719 | -10/Materials | Entered another Materials area 719 | -9/Materials | Evolved 2 slots: Utility x2 809 | -9/Materials | Discovered new exit (range 10) 944 | -9/Materials | Discovered new exit (range 10) 967 | -9/Materials | Entered Mines 971 | -9/Mines | Assisted by bots powering up and referring to "LRC-V3" 991 | -9/Mines | Deemed a non-threat by the Exiles lab entrance 992 | -9/Mines | Discovered new exit (range 5) 1002 | -9/Mines | Entered Exiles 1002 | -9/Exiles | Accompanied by 3 allies 1030 | -9/Exiles | Met 8R-AWN 1051 | -9/Exiles | Met EX-HEX 1096 | -9/Exiles | Met EX-BIN 1111 | -9/Exiles | Aligned with FarCom system 1112 | -9/Exiles | Given EX-Vault access code 1143 | -9/Exiles | Opened EX-Vault 1166 | -9/Exiles | Found Prototype Device 1167 | -9/Exiles | Identified Supersonic Drone Bay 1172 | -9/Exiles | Found Prototype Energy Cannon 1173 | -9/Exiles | Identified Latent Energy Streamer 1178 | -9/Exiles | Found Prototype Device 1179 | -9/Exiles | Identified Trap Reconfigurator 1257 | -9/Exiles | Warned to stay clear of 0b10 Research branches 1288 | -9/Exiles | Met EX-DEC 1351 | -9/Exiles | Visited The Gauntlet 1522 | -9/Exiles | Discovered new exit (range 10) 1536 | -9/Exiles | Left Exiles lab with Latent Energy Streamer 1536 | -9/Exiles | Entered Mines 1536 | -8/Mines | Accompanied by 3 allies 1639 | -8/Mines | Discovered new exit (range 11) 1649 | -8/Mines | Entered Materials 1649 | -8/Materials | Accompanied by 3 allies 1649 | -8/Materials | Evolved 2 slots: Propulsion x1, Utility x1 2083 | -8/Materials | Discovered new exit (range 18) 2214 | -8/Materials | Entered Factory 2214 | -7/Factory | Evolved 2 slots: Propulsion x1, Utility x1 2312 | -7/Factory | Self-destructed Last Messages --------------- 02146_ Dropped Arm. Wheel. 02149_ Acquired Adv. Treads. 02152_ R-06 Scavenger collects Wheel. 02156_ Destroyed Com. Wheel. 02163_ Dropped Imp. Targeting Computer. 02164_ Acquired Hacking Suite. 02195_ Slammed into W-25 Informer. PARAMETERS=PROPULSION+1,UTILITY+1 LOCATION=UNKNOWN GOAL=ESCAPE 02214_ Receiving FarCom transmissions... 02265_ Dropped Autogun. 02267_ Dropped Med. Laser. 02269_ Acquired Minigun. 02289_ Dropped Autogun. 02291_ Acquired Gauss Rifle. 02309_ Triggered Blade Trap. 02309_ Massive razor-sharp blades shoot up from within the floor. 02309_ Adv. Treads severed. 02309_ Med. Armor Plating severed. Map ----- +----------------------------------------------------+ | ????????????????????????????????????????????????? | | ????????????????????????????????????????????????? | | ????????????????????????????????????????????????? | | ????????????????????????????????????????????????? | | ????????????????????????????????????????????????? | | ????????????????????????????????????????????????? | | ????????????????????????????????????????????????? | | ????????????????????????????????????????????????? | | ????????????????????????????????????????????????? | | ????????????????????????????????????????????????? | | ????????????????????????????????????????????????? | | ????????????????????????????????????????????????? | | ????????????????????????????????????????????????? | | ????????????????????????????????????????????????? | | ????????????????????????????????????????????????? | | ????????????????????????????????????????????????? | | ????????????????????????????????? ??????????????? | | ???????????????????????????????? ?????????????? | | ?????????????????????????????? ?????????????? | | ??????????????????????###+#### ?????????????? | | ??????????????????????# ??????????????? | | ??????????????????????# ??????????????? | | ??????????????????????# """ """ #????????????? | | ????????????########### """ """ #????????????? | | ????????????# [ # """ F" #????????????? | | ????????????# # @= "" #????????????? | | ????????????# ! # """ #????????????? | | ????????????# # """ ^ t#????????????? | | ????????????#] # """ #????????????? | | ????????????# [ [# #????????????? | | ????????????# [[[[+ #????????????? | | ????????????# [[[ # #????????????? | | ????????????########### ########????????????? | | ?????????????# !# #???????????????????? | | ?????????????# """ # #???????????????????? | | ?????????????# """ # #???????????????????? | | ?????????????# """ # #???????????????????? | | ?????????????# [[+ #???????????????????? | | ?????????????# # #???????????????????? | | ?????????????# !!! !# #???????????#???????? | | ?????????????# !! # ########### ######+?? | | ?????????????# !! # ? | | ?????????????########## ? | | ??????????????????????# | | ??????????????????????# | | ??????????????????????# | | ??????????????????????# ###+##########??????? | | ??????????????????????# # [ #??????? | | ??????????????????????####### #??????? | | ????????????????????????????# """" #??????? | +----------------------------------------------------+ Best States ------------- Heat Dissipation 34 Energy Generation 14 Energy Capacity 265 Matter Stores 300 Matter Capacity 300 Sight Range 18 Terrain Scan Density 10 Armor Coverage 450 Evasion (%) 50 Targeting Accuracy 6 Recoil Reduction 3 Item Schematics ----------------- None Robot Schematics ------------------ None Fabricated ------------ Nothing Alien Tech Used ----------------- None Achievements -------------- None Challenges ------------ None Game ------ Seed SignalSchematicPlating Manual? 0 Play Time 00:25:11 Cumulative 62.3 hours Start 2022.07.12 @ 16:47:46 End 2022.07.12 @ 17:13:12 Sessions 1 Manual Loads 0 Difficulty Rogue Special Mode None Game No. 65 Rogue 65 Adventurer 0 Explorer 0 Win Type - Total 0 Types 0/0/0/0/0/0/0/0/0 Lore% 35 Gallery% 49 Achievement% 40 Wizard Run 0 Options --------- ASCII 0 Keyboard 0 Movement Arrows Keybinds 0 Fullscreen 2 Font 18/SmallcapsGlow Map View 76x50 Tactical HUD 1 Map Filters NONE Filters NONE Steam 1 RUN: 4ec450c0-e55c-4d10-9d76-dedfe44c4c82